bitfinex/quotes_SOLUSD_20250722
["timestamp","ask_amount","ask_price","bid_price","bid_amount"]
[1753146634873,0.67,196.85,196.75,13.56060324]
[1753146635072,0.67,196.85,196.84,13.56060324]
[1753146635286,5.07949408,196.87,196.84,13.56060324]
[1753146635467,17.77822928,196.87,196.86,13.56060324]
[1753146636094,57.40630293,196.87,196.7,13.56060324]
[1753146636282,57.40630293,196.87,196.7,52.52060324]
[1753146636283,13.56060324,196.84,196.7,52.52060324]
[1753146636495,16.78468397,196.8,196.69,1.5009]
[1753146636692,0.67,196.79,196.74,13.56060324]
[1753146636871,0.67,196.78,196.74,13.56060324]
[1753146637068,0.67,196.86,196.77,13.56060324]
[1753146637267,0.67,196.86,196.85,13.56060324]
[1753146637582,5.0797521,196.86,196.76,26.0]
[1753146637780,5.7497521,196.86,196.85,13.56060324]
[1753146637978,5.0797521,196.86,196.85,13.56060324]
[1753146638279,5.0797521,196.86,196.7,13.56060324]
[1753146638280,26.0,196.84,196.83,13.56060324]
[1753146638593,26.0,196.84,196.81,13.56060324]
[1753146638594,26.0,196.83,196.81,13.56060324]
[1753146638899,16.78468397,196.81,196.76,13.56060324]
[1753146639096,26.0,196.76,196.6,44.2457]
[1753146639274,0.68,196.75,196.72,13.56060324]
[1753146639473,0.68,196.85,196.74,13.56060324]
[1753146639672,0.68,196.85,196.81,13.56060324]
[1753146639882,30.34528721,196.84,196.7,13.56060324]
[1753146640094,38.94,196.87,196.64,42.78468397]
[1753146640095,16.78468397,196.79,196.64,42.78468397]
[1753146640285,26.0,196.77,196.75,13.56060324]
[1753146640593,39.62,196.8,196.75,13.56060324]
[1753146640794,43.22912137,196.9,196.79,13.56060324]
[1753146640795,0.68,196.83,196.79,13.56060324]
[1753146640979,0.68,196.83,196.81,13.56060324]
[1753146641290,26.0,196.82,196.81,13.56060324]
[1753146641493,26.68,196.82,196.8,13.56060324]
[1753146641678,0.68,196.89,196.81,13.56060324]
[1753146641866,13.56060324,196.83,196.7,13.56060324]
[1753146642067,0.68,196.82,196.77,13.56060324]
[1753146642375,0.68,196.81,196.78,13.56060324]
[1753146642783,26.0,196.83,196.78,13.56060324]
[1753146642984,5.08078447,196.82,196.78,13.56060324]
[1753146643198,0.68,196.81,196.77,13.56060324]
[1753146643515,26.0,196.8,196.76,13.56060324]
[1753146643676,26.68,196.8,196.76,13.56060324]
[1753146643875,57.02528721,196.79,196.68,26.0]
[1753146644188,57.02528721,196.79,196.74,13.56060324]
[1753146644189,16.78468397,196.78,196.74,13.56060324]
[1753146644386,0.68,196.77,196.72,13.56060324]
[1753146644600,39.56060324,196.75,196.69,13.56060324]
[1753146644800,16.78468397,196.78,196.74,13.56060324]
[1753146644989,16.78468397,196.79,196.76,13.56060324]
[1753146645179,17.46468397,196.79,196.76,13.56060324]
[1753146645494,17.46468397,196.79,196.77,13.56060324]
[1753146645882,16.78468397,196.79,196.7,13.56060324]
[1753146646080,14.24060324,196.78,196.69,26.0]
[1753146646271,0.68,196.78,196.72,13.56060324]
[1753146646474,0.68,196.78,196.74,13.56060324]
[1753146646674,26.0,196.74,196.6,1.5009]
[1753146646870,5.08491813,196.66,196.61,13.56060324]
[1753146647101,0.68,196.65,196.62,13.56060324]
[1753146647508,0.68,196.64,196.59,13.56060324]
[1753146647684,0.68,196.63,196.59,13.56060324]
[1753146647882,16.78468397,196.65,196.6,13.56060324]
[1753146648279,0.68,196.64,196.6,13.56060324]
[1753146648579,10.0,196.76,196.54,6.321]
[1753146648580,31.02528721,196.68,196.57,26.0]
[1753146648775,26.0,196.65,196.6,13.56060324]
[1753146648974,26.0,196.65,196.54,11.40901709]
[1753146648975,0.68,196.64,196.61,13.56060324]
[1753146649200,16.78468397,196.68,196.54,6.321]
[1753146649201,0.68,196.67,196.56,39.56060324]
[1753146649410,0.68,196.67,196.64,13.56060324]
[1753146649703,81.66468397,196.69,196.65,13.56060324]
[1753146649919,65.56,196.69,196.65,13.56060324]
[1753146650077,65.56,196.69,196.56,39.56060324]
[1753146650078,64.88,196.69,196.56,39.56060324]
[1753146650419,64.88,196.69,196.66,13.56060324]
[1753146650420,26.0,196.67,196.66,13.56060324]
[1753146650717,42.78468397,196.67,196.63,13.56060324]
[1753146650886,0.68,196.66,196.63,13.56060324]
[1753146651089,0.68,196.66,196.53,1.5222]
[1753146651090,5.7651767,196.65,196.53,1.5222]
[1753146651282,86.74952228,196.67,196.64,13.56060324]
[1753146651471,44.64419083,196.69,196.66,13.56060324]
[1753146651677,0.68,196.68,196.66,13.56060324]
[1753146651876,0.68,196.67,196.66,13.56060324]
[1753146652087,0.68,196.67,196.57,26.0]
[1753146652088,0.68,196.67,196.65,13.56060324]
[1753146652474,0.68,196.66,196.64,13.56060324]
[1753146652680,0.68,196.65,196.63,13.56060324]
[1753146652885,0.68,196.64,196.62,13.56060324]
[1753146653086,0.68,196.63,196.54,5.08777382]
[1753146653284,21.86931875,196.68,196.62,13.56060324]
[1753146653577,272.90650406,196.8,196.67,13.56060324]
[1753146653578,38.88,196.7,196.67,13.56060324]
[1753146653802,16.78468397,196.76,196.69,13.56060324]
[1753146653803,43.96308142,196.74,196.69,13.56060324]
[1753146654118,43.96308142,196.74,196.56,13.56060324]
[1753146654119,13.56060324,196.72,196.66,13.56060324]
[1753146654278,16.78468397,196.67,196.56,13.56060324]
[1753146654479,16.78468397,196.59,196.46,1.6456]
[1753146654695,26.0,196.54,196.51,13.56060324]
[1753146654907,17.46468397,196.53,196.49,13.56060324]
[1753146655107,5.0885406,196.52,196.49,13.56060324]
[1753146655504,0.68,196.51,196.49,13.56060324]
[1753146655701,16.78468397,196.49,196.45,13.56060324]
[1753146655886,14.24060324,196.48,196.42,13.56060324]
[1753146656211,30.34528721,196.47,196.41,13.56060324]
[1753146656402,38.88,196.46,196.41,13.56060324]
[1753146656603,0.68,196.45,196.41,13.56060324]
[1753146657705,38.88,196.46,196.43,13.56060324]
[1753146657883,26.0,196.51,196.39,0.03]
[1753146657884,26.0,196.44,196.39,0.03]
[1753146658088,26.0,196.4,196.39,0.03]
[1753146658299,95.22528721,196.4,196.39,0.03]
[1753146658517,95.22528721,196.4,196.28,11.56231129]
[1753146658518,26.0,196.36,196.32,13.56060324]
[1753146658697,26.0,196.36,196.33,13.56060324]
[1753146659292,42.78468397,196.39,196.35,13.56060324]
[1753146659486,0.68,196.38,196.29,5.09424663]
[1753146659707,0.68,196.38,196.35,13.56060324]
[1753146660101,0.68,196.37,196.35,13.56060324]
[1753146660304,0.68,196.37,196.29,5.09424663]
[1753146660305,16.78468397,196.35,196.22,45.3778]
[1753146660513,5.59950073,196.42,196.34,13.56060324]
[1753146660700,0.68,196.45,196.41,13.56060324]
[1753146660903,6.5656,196.51,196.44,13.56060324]
[1753146660904,0.68,196.5,196.44,13.56060324]
[1753146661091,44.64827579,196.54,196.49,13.56060324]
[1753146661282,14.24060324,196.53,196.38,5.09216824]
[1753146661488,0.68,196.52,196.5,13.56060324]
[1753146661687,0.68,196.51,196.5,13.56060324]
[1753146662111,26.68,196.51,196.5,13.56060324]
[1753146662326,43.46468397,196.51,196.5,13.56060324]
[1753146662506,16.78468397,196.5,196.37,5.09240872]
[1753146662817,16.78468397,196.48,196.44,13.56060324]
[1753146663119,38.9,196.48,196.37,5.09240872]
[1753146663327,38.9,196.48,196.38,26.0]
[1753146663515,38.9,196.48,196.46,13.56060324]
[1753146663820,39.58,196.48,196.45,13.56060324]
[1753146664238,0.68,196.54,196.45,26.0]
[1753146664518,26.68,196.54,196.53,13.56060324]
[1753146664894,38.9,196.57,196.53,13.56060324]
[1753146665116,36.58,196.63,196.46,0.03]
[1753146665117,0.68,196.56,196.55,13.56060324]
[1753146665298,0.68,196.61,196.55,13.56060324]
[1753146665500,0.68,196.61,196.59,13.56060324]
[1753146665816,26.0,196.6,196.59,13.56060324]
[1753146666004,38.9,196.62,196.59,13.56060324]
[1753146666203,0.68,196.6,196.59,13.56060324]
[1753146666513,0.68,196.64,196.59,13.56060324]
[1753146666713,5.14496372,196.66,196.63,13.56060324]
[1753146666915,26.68,196.64,196.61,13.56060324]
[1753146667123,16.78468397,196.62,196.58,13.56060324]
[1753146667427,5.76621128,196.61,196.58,13.56060324]
[1753146667630,5.08621128,196.61,196.57,13.56060324]
[1753146667919,5.76621128,196.61,196.58,13.56060324]
[1753146668091,0.7,196.6,196.56,13.56060324]
[1753146668293,39.58,196.59,196.54,13.56060324]
[1753146668492,39.58,196.59,196.55,13.56060324]
[1753146668493,0.7,196.58,196.55,13.56060324]
[1753146669499,38.88,196.59,196.56,13.56060324]
[1753146669688,39.58,196.59,196.57,13.56060324]
[1753146670113,31.04528721,196.58,196.48,26.0]
[1753146670425,17.48468397,196.58,196.54,13.56060324]
[1753146670717,0.7,196.57,196.53,13.56060324]
[1753146670933,0.7,196.56,196.53,13.56060324]
[1753146671430,26.0,196.54,196.49,13.56060324]
[1753146671722,0.7,196.53,196.49,13.56060324]
[1753146671930,57.04528721,196.52,196.4,5.09164969]
[1753146672119,38.88,196.51,196.46,13.56060324]
[1753146672325,38.88,196.51,196.47,13.56060324]
[1753146672624,38.88,196.52,196.5,13.56060324]
[1753146672917,38.88,196.52,196.51,13.56060324]
[1753146673121,38.88,196.56,196.51,13.56060324]
[1753146673338,38.88,196.56,196.46,26.03]
[1753146673339,38.88,196.56,196.54,13.56060324]
[1753146673628,43.96753265,196.56,196.54,13.56060324]
[1753146673797,0.7,196.55,196.46,26.0]
[1753146674006,0.7,196.55,196.51,13.56060324]
[1753146674505,0.7,196.54,196.51,13.56060324]
[1753146674931,0.7,196.54,196.5,13.56060324]
[1753146674932,0.7,196.53,196.5,13.56060324]
[1753146675327,0.7,196.53,196.51,13.56060324]
[1753146675704,0.7,196.53,196.5,13.56060324]
[1753146676027,0.7,196.53,196.51,13.56060324]
[1753146676229,38.88,196.56,196.52,13.56060324]
[1753146676523,38.88,196.56,196.54,13.56060324]
[1753146677029,43.96755848,196.56,196.54,13.56060324]
[1753146677324,44.66755848,196.56,196.54,13.56060324]
[1753146677930,5.08593125,196.63,196.55,13.56060324]
[1753146678106,5.08593125,196.63,196.5,26.0]
[1753146678306,16.78468397,196.61,196.58,13.56060324]
[1753146678536,38.86,196.63,196.6,13.56060324]
[1753146678738,0.06,196.64,196.62,13.56060324]
[1753146679024,0.03,196.64,196.63,18.64629718]
[1753146679335,0.06,196.66,196.63,44.64629718]
[1753146679538,0.06,196.66,196.65,13.56060324]
[1753146679832,0.06,196.75,196.65,13.56060324]
[1753146680012,0.06,196.75,196.71,13.56060324]
[1753146680212,0.06,196.75,196.73,13.56060324]
[1753146681021,0.06,196.75,196.66,26.0]
[1753146681022,0.06,196.75,196.74,13.56060324]
[1753146681222,0.7,196.74,196.62,38.86]
[1753146681535,16.78468397,196.73,196.72,13.56060324]
[1753146682111,0.7,196.74,196.72,13.56060324]
[1753146682309,0.06,196.75,196.73,13.56060324]
[1753146682614,0.06,196.75,196.74,13.56060324]
[1753146687155,0.76,196.75,196.73,13.56060324]
[1753146687319,0.06,196.75,196.73,13.56060324]
[1753146687634,0.7,196.74,196.73,13.56060324]
[1753146688128,0.7,196.74,196.58,18.36808397]
[1753146688129,16.78468397,196.73,196.58,18.36808397]
[1753146688330,16.78468397,196.73,196.69,13.56060324]
[1753146688528,16.78468397,196.71,196.66,13.56060324]
[1753146688726,5.08440105,196.68,196.55,5.08776392]
[1753146688916,16.78468397,196.66,196.55,5.08776392]
[1753146689115,38.82,196.65,196.55,5.08776392]
[1753146689431,16.78468397,196.59,196.47,6.6367]
[1753146689613,16.78468397,196.57,196.53,13.56060324]
[1753146689816,5.59950073,196.65,196.56,13.56060324]
[1753146689817,16.78468397,196.61,196.56,13.56060324]
[1753146690026,26.0,196.58,196.57,13.56060324]
[1753146690322,16.78468397,196.57,196.48,5.08957654]
[1753146690516,0.7,196.56,196.53,13.56060324]
[1753146690831,38.8,196.6,196.55,13.56060324]
[1753146691140,17.48468397,196.59,196.55,13.56060324]
[1753146691310,0.7,196.59,196.56,13.56060324]
[1753146691510,38.8,196.61,196.58,13.56060324]
[1753146691706,38.8,196.61,196.6,13.56060324]
[1753146691930,39.5,196.61,196.6,13.56060324]
[1753146692318,38.8,196.61,196.6,13.56060324]
[1753146692531,39.5,196.61,196.59,13.56060324]
[1753146692737,5.08672872,196.59,196.55,13.56060324]
[1753146693043,0.7,196.58,196.56,13.56060324]
[1753146693237,0.7,196.6,196.57,13.56060324]
[1753146693443,0.7,196.59,196.54,13.56060324]
[1753146693640,0.7,196.58,196.54,13.56060324]
[1753146693828,0.7,196.57,196.55,13.56060324]
[1753146694026,38.8,196.6,196.56,13.56060324]
[1753146694332,39.5,196.6,196.58,13.56060324]
[1753146694542,38.8,196.6,196.58,13.56060324]
[1753146694720,38.8,196.6,196.59,13.56060324]
[1753146694923,5.08596528,196.62,196.59,13.56060324]
[1753146695132,5.08596528,196.62,196.61,13.56060324]
[1753146695133,0.7,196.62,196.61,13.56060324]
[1753146695347,0.06,196.75,196.61,13.56060324]
[1753146695348,0.7,196.66,196.61,13.56060324]
[1753146695546,13.56060324,196.7,196.56,13.56060324]
[1753146695547,5.08416877,196.69,196.65,13.56060324]
[1753146695752,0.7,196.68,196.67,13.56060324]
[1753146695933,38.8,196.69,196.67,13.56060324]
[1753146696275,0.7,196.68,196.67,13.56060324]
[1753146696448,38.8,196.69,196.67,13.56060324]
[1753146696646,5.08322373,196.73,196.68,13.56060324]
[1753146696835,31.08207551,196.77,196.72,13.56060324]
[1753146697041,31.08207551,196.77,196.63,26.0]
[1753146697042,0.7,196.74,196.65,5.08496044]
[1753146697255,0.7,196.74,196.72,13.56060324]
[1753146697550,0.7,196.73,196.72,13.56060324]
[1753146697774,16.84468397,196.75,196.72,13.56060324]
[1753146698147,0.67,196.74,196.71,13.56060324]
[1753146698450,0.67,196.74,196.72,13.56060324]
[1753146698759,0.06,196.75,196.73,13.56060324]
[1753146699048,0.06,196.75,196.74,13.56060324]
[1753146699628,0.73,196.75,196.64,5.08543531]
[1753146699950,30.34528721,196.74,196.68,13.56060324]
[1753146700153,13.56060324,196.71,196.57,1.6334]
[1753146700332,13.56060324,196.69,196.63,13.56060324]
[1753146700656,16.78468397,196.67,196.62,13.56060324]
[1753146700834,0.67,196.66,196.62,13.56060324]
[1753146701038,0.67,196.65,196.62,13.56060324]
[1753146701236,0.67,196.65,196.63,13.56060324]
[1753146701437,5.0846629,196.67,196.64,13.56060324]
[1753146701645,5.7546629,196.67,196.64,13.56060324]
[1753146702130,0.67,196.66,196.63,13.56060324]
[1753146702333,0.67,196.66,196.6,13.56060324]
[1753146702334,14.23060324,196.66,196.6,13.56060324]
[1753146703162,5.0851767,196.65,196.61,13.56060324]
[1753146703355,39.45,196.64,196.62,13.56060324]
[1753146704635,38.78,196.64,196.62,13.56060324]
[1753146704836,38.78,196.64,196.61,13.56060324]
[1753146705149,44.53550557,196.64,196.61,13.56060324]
[1753146705350,43.86550557,196.64,196.61,13.56060324]
[1753146706053,43.86550557,196.64,196.62,13.56060324]
[1753146706234,43.86550557,196.64,196.61,13.56060324]
[1753146706436,44.53550557,196.64,196.61,13.56060324]
[1753146707157,26.0,196.67,196.63,13.56060324]
[1753146707474,26.0,196.67,196.57,5.08724627]
[1753146707475,38.78,196.65,196.57,5.08724627]
[1753146707640,38.78,196.65,196.64,13.56060324]
[1753146708276,38.78,196.65,196.56,39.59060324]
[1753146708277,53.01060324,196.65,196.56,0.03]
[1753146708440,53.01060324,196.65,196.6,13.56060324]
[1753146708635,17.45468397,196.64,196.6,13.56060324]
[1753146708835,0.67,196.63,196.6,13.56060324]
[1753146709042,38.76,196.62,196.56,0.03]
[1753146709244,44.51606956,196.62,196.59,13.56060324]
[1753146709445,44.51606956,196.62,196.56,0.03]
[1753146709446,0.67,196.61,196.56,0.03]
[1753146709671,0.67,196.6,196.56,13.59060324]
[1753146709838,39.43,196.59,196.56,13.59060324]
[1753146710043,39.43,196.59,196.56,0.03]
[1753146710466,0.67,196.58,196.56,0.03]
[1753146710644,38.76,196.59,196.56,13.59060324]
[1753146711057,18.64784951,196.57,196.56,0.03]
[1753146711246,16.78468397,196.56,196.52,0.03]
[1753146711440,38.76,196.55,196.52,0.03]
[1753146711655,39.43,196.55,196.52,0.03]
[1753146711873,38.76,196.55,196.52,13.59060324]
[1753146712041,30.34528721,196.53,196.52,0.03]
[1753146712663,31.01528721,196.53,196.52,0.03]
[1753146712852,16.78468397,196.56,196.52,0.03]
[1753146713057,0.67,196.53,196.52,13.59060324]
[1753146713448,38.76,196.56,196.52,13.59060324]
[1753146713642,38.76,196.56,196.55,13.56060324]
[1753146713848,38.76,196.58,196.55,13.56060324]
[1753146714059,38.76,196.58,196.57,13.56060324]
[1753146714261,0.67,196.64,196.57,13.56060324]
[1753146714453,39.43,196.64,196.56,13.56060324]
[1753146714649,39.43,196.64,196.63,13.56060324]
[1753146715045,56.21468397,196.64,196.53,0.03]
[1753146715269,17.45468397,196.63,196.52,5.11853119]
[1753146715561,0.67,196.62,196.59,13.56060324]
[1753146715871,39.43,196.61,196.59,13.56060324]
[1753146716250,38.76,196.61,196.6,13.56060324]
[1753146717571,38.74,196.65,196.6,13.56060324]
[1753146717777,38.74,196.65,196.64,13.56060324]
[1753146719161,16.78468397,196.64,196.54,26.0]
[1753146719388,0.67,196.63,196.59,13.56060324]
[1753146719664,39.41,196.62,196.59,13.56060324]
[1753146719984,39.41,196.62,196.54,26.0]
[1753146720160,44.49597017,196.62,196.59,13.56060324]
[1753146720349,38.74,196.62,196.61,13.56060324]
[1753146721046,38.74,196.64,196.61,13.56060324]
[1753146721282,5.08419477,196.69,196.63,13.56060324]
[1753146721452,38.74,196.68,196.67,13.56060324]
[1753146721854,5.75362564,196.71,196.67,13.56060324]
[1753146721855,38.74,196.7,196.67,13.56060324]
[1753146722168,38.74,196.7,196.57,26.0]
[1753146722371,16.78468397,196.68,196.63,13.56060324]
[1753146722551,52.97060324,196.67,196.61,13.56060324]
[1753146722753,31.01528721,196.66,196.61,13.56060324]
[1753146723070,56.34528721,196.62,196.56,13.56060324]
[1753146723377,0.67,196.65,196.61,13.56060324]
[1753146723378,38.72,196.65,196.61,13.56060324]
[1753146723668,13.56060324,196.63,196.52,5.1184905]
[1753146723967,38.72,196.62,196.59,13.56060324]
[1753146724156,5.75641239,196.61,196.58,13.56060324]
[1753146724353,43.80600767,196.62,196.59,13.56060324]
[1753146725065,0.67,196.61,196.57,13.56060324]
[1753146725271,0.67,196.6,196.57,13.56060324]
[1753146725472,52.95060324,196.59,196.52,0.03]
[1753146725656,38.72,196.58,196.54,13.56060324]
[1753146725967,39.39,196.58,196.52,0.03]
[1753146726158,39.39,196.58,196.53,13.56060324]
[1753146726366,5.75724627,196.57,196.53,13.56060324]
[1753146726576,5.75724627,196.57,196.52,0.03]
[1753146726577,0.67,196.56,196.52,0.03]
[1753146726871,38.72,196.55,196.52,13.59060324]
[1753146727661,0.67,196.54,196.52,0.03]
[1753146728055,0.68,196.58,196.53,13.56060324]
[1753146728246,38.72,196.57,196.52,0.03]
[1753146728460,38.72,196.58,196.52,0.03]
[1753146729756,38.72,196.58,196.57,13.56060324]
[1753146730359,44.48698748,196.58,196.56,13.56060324]
[1753146730780,44.48698748,196.58,196.52,0.03]
[1753146730781,0.68,196.57,196.52,0.03]
[1753146730967,0.68,196.56,196.52,0.03]
[1753146731169,38.72,196.55,196.52,0.03]
[1753146731359,39.4,196.55,196.52,0.03]
[1753146731564,39.4,196.55,196.52,13.59060324]
[1753146732156,31.7667654,196.59,196.54,13.56060324]
[1753146732366,5.08724627,196.57,196.52,13.59060324]
[1753146732573,13.56060324,196.55,196.52,0.03]
[1753146732778,39.56060324,196.53,196.52,0.03]
[1753146733078,38.7,196.54,196.52,0.03]
[1753146733079,38.7,196.54,196.52,13.59060324]
[1753146733283,0.68,196.57,196.53,13.56060324]
[1753146733488,38.7,196.56,196.52,0.03]
[1753146733660,38.7,196.57,196.55,13.56060324]
[1753146733854,38.7,196.57,196.56,13.56060324]
[1753146734055,63.59762043,196.7,196.56,13.56060324]
[1753146734056,0.68,196.66,196.56,27.15120648]
[1753146734261,38.7,196.65,196.64,13.56060324]
[1753146734480,38.7,196.65,196.57,5.08724627]
[1753146734786,39.38,196.65,196.57,5.08724627]
[1753146734983,37.28,196.7,196.64,13.56060324]
[1753146735165,38.7,196.69,196.66,13.56060324]
[1753146735365,39.38,196.69,196.66,13.56060324]
[1753146735882,38.7,196.69,196.68,13.56060324]
[1753146736887,38.7,196.69,196.67,13.56060324]
[1753146736888,39.38,196.69,196.67,13.56060324]
[1753146737296,0.68,196.68,196.65,13.56060324]
[1753146737977,0.68,196.67,196.65,13.56060324]
[1753146738182,39.38,196.66,196.64,13.56060324]
[1753146738371,39.38,196.66,196.58,26.0]
[1753146738372,38.7,196.66,196.65,13.56060324]
[1753146738961,26.68,196.7,196.65,13.56060324]
[1753146739176,38.68,196.69,196.68,13.56060324]
[1753146740997,0.06,196.71,196.68,18.64500429]
[1753146741169,0.06,196.71,196.68,5.08440105]
[1753146741369,0.06,196.71,196.7,13.56060324]
[1753146741774,0.06,196.71,196.7,13.05891357]
[1753146742701,0.06,196.71,196.7,18.14279765]
[1753146743191,0.06,196.71,196.7,74.51808486]
[1753146743395,0.06,196.73,196.72,26.0]
[1753146743568,0.06,196.75,196.72,39.56060324]
[1753146743765,0.03,196.75,196.74,13.56060324]
[1753146743983,0.06,196.79,196.77,26.0]
[1753146744184,0.06,196.79,196.7,17.79359429]
[1753146744373,0.06,196.79,196.78,13.56060324]
[1753146745059,0.74,196.79,196.66,12.71174857]
[1753146745264,0.74,196.79,196.75,13.56060324]
[1753146745491,0.06,196.79,196.75,13.56060324]
[1753146745674,0.68,196.78,196.74,13.56060324]
[1753146745875,0.68,196.77,196.72,13.56060324]
[1753146746177,0.68,196.76,196.72,13.56060324]
[1753146746369,0.68,196.75,196.72,13.56060324]
[1753146746571,0.68,196.74,196.72,13.56060324]
[1753146746779,5.08336722,196.72,196.63,5.08569394]
[1753146746966,0.68,196.72,196.7,13.56060324]
[1753146747281,52.26670756,196.76,196.71,13.56060324]
[1753146747282,26.68,196.76,196.71,13.56060324]
[1753146747484,26.0,196.76,196.75,13.56060324]
[1753146747684,5.0823338,196.76,196.74,13.56060324]
[1753146747866,0.68,196.75,196.73,13.56060324]
[1753146748062,0.68,196.74,196.73,13.56060324]
[1753146748276,0.68,196.74,196.65,26.0]
[1753146748277,0.68,196.74,196.71,13.56060324]
[1753146748666,0.68,196.74,196.72,13.56060324]
[1753146748871,5.76285563,196.74,196.72,13.56060324]
[1753146749473,0.68,196.73,196.7,13.56060324]
[1753146749876,0.68,196.72,196.7,13.56060324]
[1753146750080,5.08263273,196.75,196.71,13.56060324]
[1753146750371,39.3,196.76,196.74,13.56060324]
[1753146750575,38.62,196.76,196.74,13.56060324]
[1753146750779,38.62,196.76,196.75,13.56060324]
[1753146752174,44.3823338,196.76,196.65,26.0]
[1753146752396,57.26293704,196.76,196.66,31.08491813]
[1753146752695,0.68,196.75,196.66,31.08491813]
[1753146752886,5.08285046,196.74,196.7,13.56060324]
[1753146753085,43.70234903,196.76,196.73,13.56060324]
[1753146753289,43.70234903,196.76,196.67,5.08465958]
[1753146753467,44.38234903,196.76,196.72,13.56060324]
[1753146753696,0.68,196.75,196.72,13.56060324]
[1753146753991,14.24060324,196.74,196.68,13.56060324]
[1753146754308,0.68,196.73,196.68,13.56060324]
[1753146754589,39.3,196.72,196.68,13.56060324]
[1753146754790,39.3,196.72,196.63,26.0]
[1753146754791,0.68,196.71,196.67,13.56060324]
[1753146754989,5.76388408,196.7,196.66,13.56060324]
[1753146755185,0.68,196.69,196.66,13.56060324]
[1753146755390,0.68,196.7,196.68,13.56060324]
[1753146755582,0.68,196.7,196.67,13.56060324]
[1753146755988,43.70360704,196.72,196.68,13.56060324]
[1753146756185,0.68,196.71,196.68,13.56060324]
[1753146756383,0.68,196.7,196.68,13.56060324]
[1753146756687,0.68,196.7,196.67,13.56060324]
[1753146757084,0.68,196.69,196.66,13.56060324]
[1753146757279,0.68,196.68,196.66,13.56060324]
[1753146757686,5.08365578,196.71,196.67,13.56060324]
[1753146757896,39.3,196.72,196.69,13.56060324]
[1753146758388,39.3,196.72,196.68,13.56060324]
[1753146758389,0.68,196.71,196.68,13.56060324]
[1753146758997,5.76384216,196.71,196.68,13.56060324]
[1753146759296,0.68,196.7,196.65,13.56060324]
[1753146759498,14.24060324,196.7,196.64,13.56060324]
[1753146759676,16.78468397,196.69,196.64,13.56060324]
[1753146759870,39.28,196.68,196.63,13.56060324]
[1753146760198,0.68,196.67,196.63,13.56060324]
[1753146760416,0.68,196.67,196.56,176.89909467]
[1753146760417,56.34528721,196.65,196.56,0.03]
[1753146760572,13.56060324,196.62,196.56,13.59060324]
[1753146760898,5.08646998,196.6,196.56,13.59060324]
[1753146761082,38.58,196.59,196.57,13.56060324]
[1753146761599,38.58,196.59,196.58,13.56060324]
[1753146762113,38.58,196.59,196.56,0.03]
[1753146762313,39.26,196.59,196.57,13.56060324]
[1753146762495,0.68,196.58,196.56,13.59060324]
[1753146763017,43.66672963,196.59,196.56,13.59060324]
[1753146763685,0.68,196.58,196.56,0.03]
[1753146764204,0.68,196.57,196.56,0.03]
[1753146764403,14.24060324,196.57,196.56,0.03]
[1753146764696,39.26,196.57,196.56,0.03]
[1753146765409,44.34724627,196.57,196.56,0.03]
[1753146766889,16.78468397,196.55,196.52,0.03]
[1753146767104,30.34528721,196.53,196.52,0.03]
[1753146767403,35.43356889,196.53,196.52,0.03]
[1753146767722,36.11356889,196.53,196.48,0.03]
[1753146767886,30.34528721,196.49,196.48,0.03]
[1753146768083,16.78468397,196.48,196.43,9.26]
[1753146768287,16.78468397,196.46,196.43,9.26]
[1753146768492,39.26,196.45,196.43,9.26]
[1753146768684,31.02528721,196.44,196.43,9.26]
[1753146768880,38.58,196.44,196.43,9.26]
[1753146769102,38.58,196.44,196.43,13.76060324]
[1753146769304,43.6706129,196.44,196.43,0.2]
[1753146769498,44.3506129,196.44,196.43,0.2]
[1753146770299,74.69590011,196.44,196.43,0.2]
[1753146770496,100.69590011,196.44,196.43,0.2]